bitfinex/quotes_ETHUSD_20250517
["timestamp","ask_amount","ask_price","bid_price","bid_amount"]
[1747492366465,4.0249646,2484.5,2484.1,0.30250609]
[1747492366767,4.78887114,2484.6,2484.1,8.45050609]
[1747492366986,4.02495736,2484.5,2484.1,8.45050609]
[1747492367657,4.78944078,2484.2,2484.1,0.30250609]
[1747492367859,13.00244078,2484.2,2484.1,0.30250609]
[1747492368728,10.08,2484.4,2484.1,0.30250609]
[1747492368917,14.1051344,2484.4,2484.1,0.30250609]
[1747492369119,10.08,2485.0,2484.2,0.7662]
[1747492369346,4.02484275,2484.6,2484.2,0.7662]
[1747492369937,4.02472311,2484.7,2484.2,0.7662]
[1747492370136,4.02480276,2484.6,2484.2,0.7662]
[1747492373085,4.02464905,2484.7,2484.2,1.68787061]
[1747492373382,4.02430681,2484.9,2484.2,0.7662]
[1747492373530,4.02504817,2484.5,2484.2,8.148]
[1747492374035,4.02482575,2484.6,2484.1,0.30250609]
[1747492374036,4.02514003,2484.4,2484.1,0.30250609]
[1747492374359,4.02498915,2484.5,2484.1,8.45050609]
[1747492374938,4.02512596,2484.4,2484.1,8.45050609]
[1747492375965,0.787,2484.6,2484.1,0.30250609]
[1747492376121,4.0252897,2484.3,2484.1,0.30250609]
[1747492376321,12.99987428,2484.6,2484.1,0.30250609]
[1747492376522,4.02511876,2484.4,2484.1,0.30250609]
[1747492376947,4.02528862,2484.3,2484.1,0.30250609]
[1747492377625,4.02521111,2484.4,2484.1,0.30250609]
[1747492378128,4.02535069,2484.3,2484.1,0.30250609]
[1747492378751,4.02544078,2484.2,2484.1,0.30250609]
[1747492379261,12.97084078,2484.2,2484.1,0.30250609]
[1747492381250,4.78497539,2483.5,2483.4,0.46619007]
[1747492381450,12.96397539,2483.5,2483.4,0.46619007]
[1747492384291,4.02634299,2483.7,2483.4,0.46619007]
[1747492384486,4.02614375,2483.8,2483.4,0.46619007]
[1747492384788,4.02634971,2483.7,2483.4,0.46619007]
[1747492385352,4.02634971,2483.7,2483.5,0.37648277]
[1747492386554,4.02634971,2483.7,2483.2,8.172]
[1747492386782,4.02596322,2483.9,2483.3,8.172]
[1747492386783,4.02668123,2483.5,2483.3,8.172]
[1747492387894,4.02706185,2483.2,2483.1,0.46619007]
[1747492388099,4.02723164,2483.1,2482.9,8.63819007]
[1747492388472,4.0273491,2483.1,2482.9,0.46619007]
[1747492388803,4.02736918,2483.1,2482.9,0.46619007]
[1747492389015,4.02738622,2483.0,2482.9,0.46619007]
[1747492389706,4.85038622,2483.0,2482.9,0.46619007]
[1747492391003,4.02801989,2482.7,2482.4,8.173]
[1747492391385,4.02807899,2482.6,2482.4,8.173]
[1747492391575,4.02807899,2482.6,2482.3,1.12765889]
[1747492391776,4.02819738,2482.5,2482.4,8.173]
[1747492392198,4.02819738,2482.5,2482.3,0.8272]
[1747492392396,4.0279713,2482.7,2482.3,9.0002]
[1747492392705,4.02779859,2482.8,2482.3,11.63862]
[1747492392916,4.02779859,2482.8,2482.3,3.46562]
[1747492393076,4.02771064,2482.8,2482.4,8.174]
[1747492393400,4.02762419,2482.9,2482.4,8.174]
[1747492393703,4.02772329,2482.8,2482.4,8.174]
[1747492393871,4.02772329,2482.8,2482.4,9.33228628]
[1747492394805,4.02758335,2482.9,2482.5,8.174]
[1747492394986,4.02784562,2482.8,2482.5,8.174]
[1747492395298,4.02784562,2482.8,2482.4,1.15828628]
[1747492395501,14.10685396,2483.4,2482.8,0.55]
[1747492395666,4.02778053,2482.8,2482.6,0.55]
[1747492395971,4.02773692,2482.8,2482.5,0.8272]
[1747492396172,4.02803512,2482.6,2482.3,0.30422502]
[1747492396381,4.02835965,2482.4,2482.3,8.174]
[1747492396703,4.0283237,2482.5,2482.3,8.174]
[1747492396992,4.0283237,2482.5,2482.2,0.8272]
[1747492397199,4.02839653,2482.4,2482.2,9.0012]
[1747492397397,4.02828408,2482.5,2482.2,9.0012]
[1747492397896,4.02842518,2482.4,2482.2,0.8272]
[1747492398104,4.02842518,2482.4,2482.3,8.174]
[1747492399307,4.02842518,2482.4,2482.2,0.8272]
[1747492399507,4.02867648,2482.3,2482.2,8.175]
[1747492400415,4.02868423,2482.2,2482.1,17.384]
[1747492400715,4.02782888,2482.8,2482.3,0.7921]
[1747492400921,10.08,2482.9,2482.4,0.55]
[1747492401096,10.08,2482.9,2482.4,4.57832391]
[1747492401269,10.08,2482.9,2482.4,0.55]
[1747492401470,10.08,2482.9,2482.6,0.55]
[1747492401684,14.10756075,2482.9,2482.7,8.175]
[1747492401974,10.08,2482.9,2482.7,8.175]
[1747492402167,14.10754958,2482.9,2482.7,8.175]
[1747492402374,4.02771064,2482.8,2482.7,8.175]
[1747492402705,14.10759503,2482.9,2482.7,8.175]
[1747492403208,4.02771064,2482.8,2482.7,8.175]
[1747492403413,14.10763396,2482.9,2482.7,8.175]
[1747492404922,14.10762276,2482.9,2482.7,8.175]
[1747492405705,4.02772223,2482.8,2482.6,8.725]
[1747492406218,4.02771064,2482.8,2482.3,0.7921]
[1747492406513,4.02781723,2482.8,2482.4,8.94479957]
[1747492406716,10.08,2482.9,2482.4,0.76979957]
[1747492406905,19.0,2482.9,2482.4,8.39479957]
[1747492407129,4.02819738,2482.5,2482.4,0.21979957]
[1747492407306,19.0,2482.9,2482.3,0.55]
[1747492407480,4.02827778,2482.5,2482.3,0.55]
[1747492407679,4.02811906,2482.6,2482.3,0.55]
[1747492407898,4.02781358,2482.8,2482.3,2.63399563]
[1747492408103,4.02788527,2482.7,2482.3,2.63399563]
[1747492408909,4.02788527,2482.7,2482.4,0.22036991]
[1747492409108,4.02788527,2482.7,2482.4,0.59653697]
[1747492409483,4.02788527,2482.7,2482.4,0.37616706]
[1747492409825,4.02788527,2482.7,2482.5,0.37616706]
[1747492410933,4.02803512,2482.6,2482.5,0.37616706]
[1747492411234,4.02796145,2482.7,2482.3,0.55]
[1747492411436,4.02787288,2482.7,2482.3,0.55]
[1747492411899,4.02773699,2482.8,2482.5,0.55]
[1747492412308,14.10765582,2482.9,2482.6,0.55]
[1747492412502,4.02720097,2483.2,2482.8,0.55]
[1747492412707,4.02729242,2483.1,2482.8,0.55]
[1747492413000,10.8906,2483.4,2482.8,0.55]
[1747492413223,4.02712928,2483.2,2482.9,0.8098]
[1747492413400,4.02712928,2483.2,2482.6,0.8098]
[1747492413401,4.02774565,2482.8,2482.6,0.8098]
[1747492413605,4.02787288,2482.7,2482.6,0.8098]
[1747492413839,4.02787288,2482.7,2482.6,8.175]
[1747492414042,0.8299,2482.9,2482.2,0.8098]
[1747492414227,4.02842173,2482.4,2482.2,8.9028]
[1747492414425,4.02842173,2482.4,2482.3,0.77050349]
[1747492414662,4.02842173,2482.4,2482.3,0.22050349]
[1747492414835,4.02842173,2482.4,2482.3,0.77050349]
[1747492415142,4.02828718,2482.5,2482.3,0.77050349]
[1747492415347,4.02778134,2482.8,2482.4,0.55]
[1747492415533,4.02788375,2482.7,2482.4,0.55]
[1747492416041,4.02740062,2483.0,2482.6,0.55]
[1747492416241,4.02740062,2483.0,2482.7,8.31351392]
[1747492416242,4.02762323,2482.9,2482.7,8.31351392]
[1747492416411,4.02744515,2483.0,2482.7,8.31351392]
[1747492416611,4.02755863,2482.9,2482.7,8.31351392]
[1747492416823,4.02738006,2483.1,2482.8,8.093]
[1747492417217,4.02712637,2483.2,2482.8,8.093]
[1747492417543,4.02712637,2483.2,2482.9,0.55]
[1747492418241,4.02724132,2483.1,2483.0,0.37674048]
[1747492419123,4.85824132,2483.1,2483.0,0.37674048]
[1747492419747,4.02799035,2482.7,2482.5,8.093]
[1747492420444,4.02755771,2482.9,2482.6,0.55]
[1747492420744,4.02755771,2482.9,2482.6,0.77054235]
[1747492420944,4.02755771,2482.9,2482.7,0.37685935]
[1747492421343,4.02740401,2483.0,2482.7,0.37685935]
[1747492421516,4.02765183,2482.9,2482.7,0.37685935]
[1747492422246,4.02765183,2482.9,2482.6,0.55]
[1747492422440,4.02762263,2482.9,2482.6,0.55]
[1747492422749,4.02740597,2483.0,2482.7,0.98359453]
[1747492423415,4.02740597,2483.0,2482.8,0.37617207]
[1747492423617,4.02730737,2483.1,2482.8,0.37617207]
[1747492424316,4.02746302,2483.0,2482.8,0.37617207]
[1747492425145,10.08,2483.3,2482.8,0.37617207]
[1747492425357,4.02754843,2482.9,2482.6,0.55]
[1747492425551,4.02787288,2482.7,2482.5,1.26959007]
[1747492425729,4.02787288,2482.7,2482.6,8.093]
[1747492425928,4.02803512,2482.6,2482.5,0.46619007]
[1747492426249,4.02803512,2482.6,2482.5,8.55919007]
[1747492426447,4.02803512,2482.6,2482.5,8.77962242]
[1747492426650,4.02803512,2482.6,2482.5,0.68662242]
[1747492427214,4.02803512,2482.6,2482.4,8.093]
[1747492427455,4.02819738,2482.5,2482.4,8.093]
[1747492427749,0.8134,2482.8,2482.1,18.15175784]
[1747492427951,4.02861436,2482.3,2482.2,8.093]
[1747492428137,4.02861436,2482.3,2482.2,8.31354494]
[1747492428847,4.02861436,2482.3,2482.2,8.69005931]
[1747492429853,4.02861436,2482.3,2482.2,0.59705931]
[1747492430753,4.02861436,2482.3,2482.2,0.37651437]
[1747492433559,4.02845023,2482.4,2482.2,0.37651437]
[1747492434057,4.02852193,2482.3,2482.1,17.384]
[1747492434226,4.02852978,2482.3,2482.1,17.384]
[1747492434556,8.056,2482.6,2482.1,17.934]
[1747492434858,4.0286428,2482.3,2482.1,17.934]
[1747492435462,4.0286428,2482.3,2482.1,26.028]
[1747492435960,4.02868423,2482.2,2482.1,25.478]
[1747492436535,4.02868423,2482.2,2482.1,17.384]
[1747492437476,0.7639,2482.3,2481.8,1.58197651]
[1747492437765,4.02917119,2481.9,2481.8,0.30278644]
[1747492438929,4.02917119,2481.9,2481.8,0.22511944]
[1747492441434,4.02901698,2482.0,2481.8,0.22511944]
[1747492443970,0.7653,2482.5,2481.9,1.3389]
[1747492444134,4.02860878,2482.3,2481.9,1.3389]
[1747492444775,4.02811455,2482.6,2482.1,0.55]
[1747492444935,4.02822966,2482.5,2482.1,0.55]
[1747492445141,10.8453,2482.7,2482.1,0.55]
[1747492445142,10.08,2482.7,2482.3,0.55]
[1747492445448,4.02837974,2482.4,2482.0,0.59544659]
[1747492445679,4.02852193,2482.3,2482.2,8.562]
[1747492446062,4.02842665,2482.4,2482.2,8.562]
[1747492446240,4.02848109,2482.4,2482.2,8.562]
[1747492446434,4.02803512,2482.6,2481.9,18.1869]
[1747492446634,4.02877143,2482.2,2482.1,8.012]
[1747492446843,4.02826693,2482.5,2482.1,8.012]
[1747492447273,4.02826693,2482.5,2482.2,0.55]
[1747492447852,4.02819828,2482.5,2482.3,0.7889]
[1747492448658,4.0279285,2482.7,2482.3,0.7889]
[1747492448659,4.02812537,2482.6,2482.3,0.7889]
[1747492448875,4.02823994,2482.5,2482.3,0.7889]
[1747492449037,4.02835965,2482.4,2482.3,1.3389]
[1747492449237,4.028288,2482.5,2482.3,1.3389]
[1747492449682,4.02787288,2482.7,2482.3,1.3389]
[1747492449976,4.02820729,2482.5,2482.3,1.3389]
[1747492450178,10.08,2482.8,2482.0,0.7869]
[1747492450376,4.02884654,2482.1,2482.0,0.55]
[1747492451482,4.02900886,2482.0,2481.8,0.69130951]
[1747492451782,4.02917119,2481.9,2481.8,0.69130951]
[1747492452572,4.02917119,2481.9,2481.8,0.22511944]
[1747492453655,3.82917119,2481.9,2481.8,0.22511944]
[1747492454268,7.996,2482.1,2481.8,0.77511944]
[1747492454269,4.0288811,2482.1,2481.8,0.77511944]
[1747492454470,7.998,2482.3,2481.8,0.77511944]
[1747492454672,4.02875396,2482.2,2481.8,0.77511944]
[1747492454971,12.0265535,2482.3,2481.8,0.77511944]
[1747492454972,7.998,2482.3,2481.8,0.77511944]
[1747492455173,4.02917119,2481.9,2481.8,0.77511944]
[1747492455467,4.02917119,2481.9,2481.8,0.6005135]
[1747492456856,4.02917119,2481.9,2481.8,0.22511944]
[1747492457990,10.08,2482.2,2481.9,1.314]
[1747492458701,14.10868434,2482.2,2482.1,0.55]
[1747492458900,14.10868423,2482.2,2482.1,8.562]
[1747492459199,10.08,2482.2,2482.1,8.562]
[1747492459356,4.02884654,2482.1,2482.0,0.77009159]
[1747492459561,4.02884654,2482.1,2482.0,8.78209159]
[1747492460197,14.1087703,2482.2,2482.0,8.78209159]
[1747492460358,14.1087703,2482.2,2482.0,8.562]
[1747492460691,10.08,2482.2,2482.0,8.562]
[1747492461093,10.08,2482.2,2482.1,0.55]
[1747492461297,10.08,2482.2,2482.1,0.77019104]
[1747492462106,14.10868423,2482.2,2482.1,0.77019104]
[1747492462263,14.10868423,2482.2,2482.1,0.22019104]
[1747492462461,10.08,2482.2,2482.1,0.59601844]
[1747492463388,4.02859455,2482.3,2482.1,0.59601844]
[1747492464011,4.02859455,2482.3,2482.1,0.3758274]
[1747492464713,4.02859455,2482.3,2482.0,8.012]
[1747492465000,10.08,2482.7,2482.1,0.55]
[1747492465168,4.02827712,2482.5,2482.1,0.55]
[1747492465368,10.8526,2482.8,2482.2,0.22028281]
[1747492465600,4.02826898,2482.5,2482.2,0.22028281]
[1747492466005,10.08,2483.1,2482.3,0.55]
[1747492466299,4.02754843,2482.9,2482.5,0.55]
[1747492466503,4.02827016,2482.5,2482.3,0.37594593]
[1747492466673,4.02835965,2482.4,2482.3,0.37594593]
[1747492467004,4.02835965,2482.4,2482.3,1.14612116]
[1747492467228,4.02835965,2482.4,2482.3,0.59612116]
[1747492467507,4.02835965,2482.4,2482.3,0.37594593]
[1747492468211,4.02826076,2482.5,2482.3,0.37594593]
[1747492468370,7.954,2482.5,2482.3,0.37594593]
[1747492468573,4.0282831,2482.5,2482.3,0.92594593]
[1747492468802,4.0282831,2482.5,2482.3,0.55]
[1747492469010,4.02819738,2482.5,2482.3,0.55]
[1747492469483,11.97619738,2482.5,2482.3,0.55]
[1747492469691,4.02835965,2482.4,2482.3,0.55]
[1747492470086,4.02835965,2482.4,2482.3,0.22031098]
[1747492470913,11.97035965,2482.4,2482.3,0.22031098]
[1747492471117,4.02852193,2482.3,2482.2,0.37608569]
[1747492471713,4.02900886,2482.0,2481.9,0.55]
[1747492472122,4.02893307,2482.1,2481.9,0.7705119]
[1747492472484,4.02893307,2482.1,2481.9,0.55]
[1747492472819,4.02893307,2482.1,2482.0,0.37636105]
[1747492473527,4.02859712,2482.3,2482.1,0.55]
[1747492473899,7.926,2482.6,2482.3,0.55]
[1747492474237,4.02829012,2482.5,2482.3,0.55]
[1747492474836,4.02835965,2482.4,2482.3,0.55]
[1747492475688,4.02835965,2482.4,2482.3,0.92578456]
[1747492476086,4.02835965,2482.4,2482.3,1.14594779]
[1747492477023,4.02827703,2482.5,2482.3,1.14594779]
[1747492477251,11.94127703,2482.5,2482.3,1.14594779]
[1747492477529,4.02835965,2482.4,2482.3,1.14594779]
[1747492477721,4.02835965,2482.4,2482.3,0.92578456]
[1747492479221,12.71825965,2482.4,2482.3,0.37578456]
[1747492479519,4.81625965,2482.4,2482.3,0.37578456]
[1747492479718,12.73525965,2482.4,2482.3,0.37578456]
[1747492480293,4.02879659,2482.2,2482.0,0.55]
[1747492480492,11.94379659,2482.2,2482.0,0.55]
[1747492481023,11.93979659,2482.2,2482.0,0.55]
[1747492481221,11.93879659,2482.2,2482.0,0.55]
[1747492482224,4.02879659,2482.2,2482.1,0.37603024]
[1747492482436,11.93279659,2482.2,2482.1,0.37603024]
[1747492482631,4.02879659,2482.2,2482.1,0.37603024]
[1747492482833,11.93079659,2482.2,2482.1,0.37603024]
[1747492483294,11.92979659,2482.2,2482.1,0.37603024]
[1747492483496,4.0288834,2482.1,2481.9,0.55]
[1747492484035,11.9268834,2482.1,2481.9,0.55]
[1747492484711,11.9268834,2482.1,2482.0,0.37624604]
[1747492485137,0.7879,2482.4,2482.0,0.37624604]
[1747492485435,11.91968895,2482.2,2482.0,0.37624604]
[1747492485935,4.02868895,2482.2,2482.1,0.37624604]
[1747492486233,11.91568895,2482.2,2482.1,0.37624604]
[1747492486441,11.91568895,2482.2,2482.1,0.59688952]
[1747492488311,11.91568895,2482.2,2482.1,0.37624604]
[1747492488638,4.02884654,2482.1,2482.0,0.37624604]
[1747492489003,4.02884654,2482.1,2482.0,1.14695257]
[1747492489410,11.90184654,2482.1,2482.0,1.14695257]
[1747492489944,11.90184654,2482.1,2482.0,0.59695257]
[1747492490310,11.90184654,2482.1,2482.0,0.37624604]
[1747492490511,4.02917119,2481.9,2481.8,0.22511944]
[1747492491207,4.02917119,2481.9,2481.8,0.445988]
[1747492491408,4.02884128,2482.2,2481.9,0.55]
[1747492491608,4.02852193,2482.3,2481.9,0.55]
[1747492491841,11.90273065,2482.2,2481.9,0.55]
[1747492492139,4.02885821,2482.1,2482.0,0.22086856]
[1747492492655,7.87,2482.1,2482.0,0.22086856]
[1747492493252,11.89884654,2482.1,2482.0,0.22086856]
[1747492493659,11.89884654,2482.1,2482.0,1.14785758]
[1747492494255,4.02884654,2482.1,2482.0,1.14785758]
[1747492494436,4.02875562,2482.2,2482.0,1.14785758]
[1747492494757,11.88975562,2482.2,2482.0,1.14785758]
[1747492495052,7.859,2482.2,2482.1,0.22086856]
[1747492495261,11.88769975,2482.2,2482.1,0.22086856]
[1747492495859,11.88769975,2482.2,2482.1,0.59785758]
[1747492496156,4.02853402,2482.3,2482.1,0.59785758]
[1747492496333,7.853,2482.2,2482.1,1.14785758]
[1747492496679,7.852,2482.2,2482.1,1.14785758]
[1747492497153,11.88068423,2482.2,2482.1,1.14785758]
[1747492498953,4.02868423,2482.2,2482.1,1.14785758]
[1747492499118,11.87668423,2482.2,2482.1,0.59785758]
[1747492500055,11.87268423,2482.2,2482.1,0.59785758]
[1747492500957,12.62788423,2482.2,2482.1,0.59785758]
[1747492501254,12.62788423,2482.2,2482.1,0.37698902]
[1747492501853,11.86768423,2482.2,2482.1,0.37698902]
[1747492502025,4.02868423,2482.2,2482.1,0.37698902]
[1747492502226,4.0290232,2482.0,2481.9,0.55]
[1747492502955,4.0290232,2482.0,2481.9,0.77101762]
[1747492502956,4.02297126,2482.0,2481.9,0.77101762]
[1747492503372,4.02297126,2482.0,2481.9,1.14817796]
[1747492503653,4.02297126,2482.0,2481.9,0.59817796]
[1747492504244,11.86797126,2482.0,2481.9,0.59817796]
[1747492504448,11.86597126,2482.0,2481.9,0.59817796]
[1747492504648,4.02297126,2482.0,2481.9,0.59817796]
[1747492504851,11.86397126,2482.0,2481.9,0.59817796]
[1747492505052,4.02879551,2482.2,2481.9,0.59817796]
[1747492505262,11.86968736,2482.2,2482.0,0.22101762]
[1747492505666,4.02868736,2482.2,2482.0,0.22101762]
[1747492505869,4.02859515,2482.3,2482.1,0.55]
[1747492506058,4.0289328,2482.1,2482.0,0.55]
[1747492506267,4.02900886,2482.0,2481.9,0.37716034]
[1747492506973,4.02176114,2482.0,2481.9,0.37716034]
[1747492508091,4.02889966,2482.1,2481.9,0.92716034]
[1747492508367,4.02900886,2482.0,2481.9,0.59841024]
[1747492509450,4.85770886,2482.0,2481.9,0.59841024]
[1747492509649,4.85770886,2482.0,2481.9,0.59852299]
[1747492509851,4.85770886,2482.0,2481.9,0.37716034]
[1747492510578,4.02917119,2481.9,2481.8,0.22511944]
[1747492511855,4.02917119,2481.9,2481.8,0.60276422]
[1747492512163,11.88217119,2481.9,2481.8,0.60276422]
[1747492512480,11.88217119,2481.9,2481.8,0.82402396]
[1747492513053,11.88217119,2481.9,2481.8,0.22511944]
[1747492514545,11.87765625,2481.9,2481.8,0.22511944]
[1747492515790,24.6779977,2481.9,2481.8,0.22511944]
[1747492515966,4.03014548,2481.3,2481.2,0.46619007]
[1747492516295,11.88014548,2481.3,2481.2,0.46619007]
[1747492517502,7.85,2481.3,2480.9,0.3774149]
[1747492517688,4.0306328,2481.0,2480.9,0.3774149]
[1747492518483,4.02489006,2481.0,2480.9,0.3774149]
[1747492518870,4.03109758,2480.8,2480.6,0.76635681]
[1747492519098,4.03030791,2481.2,2480.6,0.46619007]
[1747492519301,11.87303823,2480.8,2480.6,1.01619007]
[1747492519616,4.03112024,2480.7,2480.6,1.01619007]
[1747492519910,11.87303478,2480.8,2480.6,1.01619007]
[1747492520213,4.03112024,2480.7,2480.6,1.01619007]
[1747492520511,4.03112024,2480.7,2480.6,0.55]
[1747492521017,10.08,2481.3,2480.7,0.55]
[1747492521222,7.839,2481.2,2480.7,0.55]
[1747492521383,4.03081165,2480.9,2480.7,0.55]
[1747492521687,4.03051715,2481.1,2480.7,0.55]
[1747492521892,4.03081368,2480.9,2480.7,0.55]
[1747492522390,4.03075273,2481.0,2480.6,0.55]
[1747492522597,4.03080775,2480.9,2480.6,1.46601]
[1747492522828,4.03075908,2481.0,2480.6,1.46601]
[1747492523117,4.03079845,2480.9,2480.6,1.46601]
[1747492523315,4.03096019,2480.8,2480.6,1.46601]
[1747492523483,4.03074708,2481.0,2480.6,1.46601]
[1747492523675,4.03084844,2480.9,2480.6,1.46601]
[1747492524122,4.03084844,2480.9,2480.6,1.77521481]
[1747492524419,4.03064525,2481.0,2480.6,1.77521481]
[1747492524625,7.834,2481.2,2480.9,1.3377]
[1747492524914,11.86436333,2481.2,2480.9,1.3377]
[1747492525101,4.03047035,2481.1,2480.9,1.3377]
[1747492525411,4.03053257,2481.1,2480.9,1.3377]
[1747492525726,11.86436333,2481.2,2480.7,0.7877]
[1747492525727,4.03085093,2480.9,2480.7,0.7877]
[1747492526023,4.03106647,2480.8,2480.7,0.55]
[1747492526330,4.03125049,2480.7,2480.5,0.7877]
[1747492526477,4.03128275,2480.6,2480.5,0.7877]
[1747492527195,4.03128275,2480.6,2480.5,1.3377]
[1747492527412,4.03120556,2480.7,2480.5,1.3377]
[1747492528413,4.03120556,2480.7,2480.5,1.63467075]
[1747492529827,4.03128275,2480.6,2480.5,0.55]
[1747492530351,4.0319313,2480.3,2480.0,1.1291477]
[1747492530556,4.03147711,2480.5,2480.0,1.1291477]
[1747492530756,10.08,2480.6,2480.1,4.58209435]
[1747492530757,14.11137457,2480.6,2480.1,4.58209435]
[1747492531143,21.94137457,2480.6,2480.1,4.58209435]
[1747492531515,21.94137457,2480.6,2480.3,0.55]
[1747492531721,4.031462,2480.5,2480.3,0.55]
[1747492531952,21.94134627,2480.6,2480.3,0.55]
[1747492532154,21.93734627,2480.6,2480.3,0.55]
[1747492532960,21.93734627,2480.6,2480.2,0.37616263]
[1747492532961,4.03144527,2480.5,2480.2,0.37616263]
[1747492533160,4.03144527,2480.5,2480.0,2.07348148]
[1747492533161,4.03185125,2480.3,2480.0,2.07348148]
[1747492533559,4.03168453,2480.4,2480.0,2.07348148]
[1747492534153,4.02417564,2480.4,2480.2,0.55]
[1747492534664,4.03152335,2480.5,2480.2,0.55]
[1747492535459,10.08,2480.6,2480.2,0.55]
[1747492535635,4.03158082,2480.5,2480.2,0.55]
[1747492536164,4.03162761,2480.4,2480.2,0.55]
[1747492536357,17.905,2480.6,2480.2,4.97933585]
[1747492536558,17.905,2480.6,2480.4,0.55]
[1747492536559,10.08,2480.6,2480.4,0.55]
[1747492537665,4.03144527,2480.5,2480.4,0.55]
[1747492537870,4.02583662,2480.5,2480.4,0.55]
[1747492540074,10.08,2480.6,2480.5,0.55]
[1747492540227,11.85612153,2480.7,2480.5,0.55]
[1747492540427,11.85601517,2480.8,2480.5,0.55]
[1747492542070,4.03116598,2480.7,2480.5,0.55]
[1747492542273,11.85605055,2480.8,2480.5,0.55]
[1747492542483,10.08,2481.6,2480.6,0.7968]
[1747492542684,0.8035,2481.9,2480.8,0.7968]
[1747492542685,4.03035879,2481.2,2480.8,0.7968]
[1747492542985,4.03071637,2481.0,2480.9,0.92653816]
[1747492543546,4.03071637,2481.0,2480.9,1.1472887]
[1747492544085,4.03071637,2481.0,2480.9,0.5972887]
[1747492544471,4.03057288,2481.1,2480.9,0.5972887]
[1747492544661,11.85557288,2481.1,2480.9,0.37653816]
[1747492545005,11.85557288,2481.1,2480.6,4.78690459]
[1747492545006,11.85557288,2481.1,2480.7,0.55]
[1747492545296,11.85557288,2481.1,2480.9,0.55]
[1747492545495,11.84779782,2481.1,2480.9,0.55]
[1747492545961,4.0306328,2481.0,2480.8,0.55]
[1747492546362,4.03079527,2480.9,2480.8,0.55]
[1747492546564,11.84779782,2481.1,2480.8,0.55]
[1747492546798,4.03079527,2480.9,2480.8,0.55]
[1747492546995,4.03079527,2480.9,2480.6,0.7557]
[1747492547209,4.03128275,2480.6,2480.5,0.46619007]
[1747492547568,4.03128275,2480.6,2480.5,0.68727915]
[1747492547887,4.03128275,2480.6,2480.5,0.22108908]
[1747492548900,4.03128275,2480.6,2480.5,0.5984334]
[1747492549467,4.03102777,2480.8,2480.5,0.5984334]
[1747492549685,7.824,2480.7,2480.6,1.3057]
[1747492549887,7.824,2480.7,2480.6,2.12034771]
[1747492550399,4.03081469,2480.9,2480.6,2.49769203]
[1747492550600,0.787,2481.3,2480.6,2.49769203]
[1747492550806,4.03077244,2481.0,2480.7,0.22108908]
[1747492551103,4.03054618,2481.1,2480.8,0.92734432]
[1747492551300,4.03064046,2481.0,2480.8,0.92734432]
[1747492551507,4.03078473,2481.0,2480.9,0.22108908]
[1747492552403,4.03078473,2481.0,2480.8,0.92734432]
[1747492552604,4.81779527,2480.9,2480.8,0.37734432]
[1747492552810,4.03079527,2480.9,2480.8,0.37734432]
[1747492553098,4.03079527,2480.9,2480.8,0.22096644]
[1747492554095,4.03096181,2480.8,2480.6,0.55]
[1747492554697,4.03112024,2480.7,2480.6,0.55]
[1747492555407,4.03066634,2481.0,2480.6,1.58530583]
[1747492555606,4.03089027,2480.9,2480.7,0.55]
[1747492555807,4.03089027,2480.9,2480.7,0.92732699]
[1747492556004,11.85495775,2480.8,2480.7,0.92732699]
[1747492556303,4.03095775,2480.8,2480.7,0.92732699]
[1747492556510,11.85495775,2480.8,2480.7,0.92732699]
[1747492557079,11.85495775,2480.8,2480.7,0.5983953]
[1747492557295,12.61776491,2480.8,2480.7,0.5983953]
[1747492557815,12.61776491,2480.8,2480.7,0.37732699]
[1747492558674,12.61776491,2480.8,2480.0,0.77373777]
[1747492558675,4.03172164,2480.4,2480.0,0.77373777]
[1747492558872,4.03172164,2480.4,2480.1,2.11564022]
[1747492559201,4.03184234,2480.3,2480.1,0.22110117]
[1747492559577,11.85584234,2480.3,2480.2,0.22110117]
[1747492559778,11.85584234,2480.3,2480.2,0.59846438]
[1747492560179,7.824,2480.3,2480.2,0.59846438]
[1747492560386,4.0316078,2480.4,2480.3,0.55]
[1747492560683,11.8546078,2480.4,2480.3,0.55]
[1747492560878,11.8546078,2480.4,2480.2,0.59846438]
[1747492560879,4.03177035,2480.3,2480.2,0.59846438]
[1747492561111,4.02522509,2480.3,2480.2,0.59846438]
[1747492562178,4.02522509,2480.3,2480.2,0.37736321]
[1747492562378,4.03225806,2480.0,2479.9,0.46619007]
[1747492562797,4.82395806,2480.0,2479.9,0.46619007]
[1747492563712,4.03225806,2480.0,2479.9,0.46619007]
[1747492564020,7.824,2480.0,2479.8,0.55]
[1747492564320,4.03242066,2479.9,2479.8,0.55]
[1747492564615,11.85642066,2479.9,2479.8,0.55]
[1747492565528,7.824,2479.9,2479.8,0.55]
[1747492565728,11.85642066,2479.9,2479.6,0.55]
[1747492565931,4.03271176,2479.8,2479.6,0.55]
[1747492566228,7.824,2479.8,2479.6,0.55]
[1747492566430,4.03290853,2479.6,2479.5,0.30907771]
[1747492566606,8.6157,2479.8,2479.3,0.46619007]
[1747492566927,8.6157,2479.8,2479.4,0.55]
[1747492567331,4.03307118,2479.5,2479.4,0.55]
[1747492567548,4.03207307,2480.2,2479.4,0.55]
[1747492567734,7.825,2480.1,2479.6,0.55]
[1747492567930,4.0320181,2480.2,2479.8,0.55]
[1747492568250,21.93681346,2480.3,2480.2,0.55]
[1747492568411,11.85681346,2480.3,2480.2,0.55]
[1747492568758,7.825,2480.3,2480.2,0.55]
[1747492568914,11.84929349,2480.3,2480.2,0.55]
[1747492569516,4.03177035,2480.3,2479.9,1.3098]
[1747492569712,4.03177035,2480.3,2479.9,1.84403026]
[1747492569917,4.03225806,2480.0,2479.9,0.55]
[1747492570441,4.03234824,2480.0,2479.6,1.22599007]
[1747492570647,4.03216148,2480.1,2479.6,5.25887207]
[1747492570854,4.0322914,2480.0,2479.7,0.55]
[1747492571040,4.03243297,2479.9,2479.7,0.55]
[1747492571352,4.03233729,2480.0,2479.7,0.55]
[1747492571514,4.03233729,2480.0,2479.7,1.16059636]
[1747492571846,4.03258327,2479.8,2479.6,1.22599007]
[1747492572052,4.03271145,2479.8,2479.5,0.2969818]
[1747492572349,4.03266606,2479.8,2479.4,8.5848]
[1747492572549,12.64777311,2480.2,2479.5,0.0403282]
[1747492572752,16.6167,2480.7,2480.2,0.55]